Workbook

Sheet KT
C3: Hodnoty
A4: b | B4: c | C4: Součet z kapitoly (+) | D4: Součet z vps (+) | E4: Součet z kapitoly (-) | F4: Součet z vps (-)
A5: (prázdné) | B5: (prázdné)
A6: (prázdné) Celkem
A7: Celkový součet

Sheet PN z 2. čtení
A2: Přehled schválených pozměňovacích návrhů k zákonu o státním rozpočtu na rok 2025
A4: I. PŘÍJMY (v Kč)
A5: Poř. č. | C5: čís. kap. | D5: kapitola | E5: Titul a ukazatel státního rozpočtu | F5: Zvýšení SR 2025 | I5: Snížení SR 2025 | L5: Přihlásil se k PN/předkládající poslanci | M5: Poznámka zpravodaje | N5: číslo sněmovního dokumentu | O5: stanovisko MF
F6: kapitoly | G6: VPS | H6: Celkem | I6: kapitoly | J6: VPS | K6: Celkem
H7: =SUM(F7:G7) -> 0 | K7: =SUM(I7:J7) -> 0
H8: =SUM(F8:G8) -> 0 | K8: =SUM(I8:J8) -> 0
H9: =SUM(F9:G9) -> 0 | K9: =SUM(I9:J9) -> 0
H10: =SUM(F10:G10) -> 0 | K10: =SUM(I10:J10) -> 0
H11: =SUM(F11:G11) -> 0 | K11: =SUM(I11:J11) -> 0
E12: CELKEM | F12: =SUM(F10:F11) -> 0 | G12: 0 | H12: 0 | I12: 0 | J12: 0 | K12: 0
H13: =SUM(F12:G12) -> 0 | K13: =SUM(I12:J12) -> 0
E14: =H252 -> 0
A16: II. VÝDAJE (v Kč)
A17: Poř. č. | C17: č. kap. | D17: kapitola | E17: Titul a ukazatel státního rozpočtu | F17: Zvýšení SR 2025 | I17: Snížení SR 2025 | L17: Přihlásil se k PN/předkládající poslanci | M17: Poznámka zpravodaje | N17: číslo sněmovního dokumentu | O17: stanovisko MF
F18: kapitoly | G18: VPS | H18: Celkem | I18: kapitoly | J18: VPS | K18: Celkem
A20: a | B20: aa | C20: b | D20: c | E20: d | F20: kapitoly (+) | G20: vps (+) | H20: celkem (+) | I20: kapitoly (-) | J20: vps (-) | K20: celkem (-) | L20: výbor | M20: pozn | N20: číslo
C21: 314 | D21: Min. vnitra | E21: zvýšit výdaje v kap. 314 Min. vnitra v rámci programu Z1404 a názvu programu „Podpora spolkové činnosti spolků působících na úseku požární ochrany, jejichž členové vyvíjejí činnost i v jednotkách SDH obcí“ o částku 10 000 000 Kč. Změna se promítne do dalších adekvátních ukazatelů. | F21: 10000000 | H21: =SUM(F21:G21) -> 10000000 | K21: =SUM(I21:J21) -> 0 | L21: Rozpočtový výbor | O21: SOUHLAS
C22: 314 | D22: Min. vnitra | E22: snížit výdaje v kap. 314 Min. vnitra v rámci programu Z1401 „Podpora NNO působících na úseku PO, IZS, ochrany obyvatelstva a krizového řízení“ o částku 10 000 000 Kč. Změna se promítne do dalších adekvátních ukazatelů. | H22: 0 | I22: 10000000 | K22: 10000000
C23: 329 | D23: Min. zemědělství | E23: zvýšit výdaje v kap. 329 Min. zemědělství v rámci specifického ukazatele "Podpora vodního hospodářství" o částku 700 000 000 Kč za účelem financování vodohospodářské infrastruktury a to v rámci programu 12940 "Podpora opatření pro zmírnění negativních dopadů sucha a nedostatku vody" a dále v rámci programu 12941 "Podpora výstavby a technického zhodnocení infrastruktury vodovodů a kanalizací III". Změna se promítne do dalších adekvátních ukazatelů kapitoly. | F23: 700000000 | H23: 700000000 | K23: 0 | L23: Rozpočtový výbor | O23: SOUHLAS
C24: 329 | D24: Min. zemědělství | E24: snížit výdaje v kap. 329 Min. zemědělství v rámci průřezového ukazatele "Výdaje na společnou zemědělskou politiku celkem" a "v tom: podpora venkova – ze státního rozpočtu“ o částku 700 000 000 Kč. Změna se promítne do dalších adekvátních ukazatelů kapitoly. | H24: 0 | I24: 700000000 | K24: 700000000
C25: 333 | D25: Min. školství mládeže a tělovýchovy | E25: zvýšit výdaje v kap. 333 Min. školství, mládeže a tělovýchovy v rámci specifického ukazatele "Podpora činnosti v oblasti mládeže“ o částku 30 000 000 Kč určenou na podporu organizací v oblasti práce s dětmi a mládeží. Změna se promítne do dalších adekvátních ukazatelů. | F25: 30000000 | H25: 30000000 | K25: 0 | L25: Rozpočtový výbor | O25: SOUHLAS
C26: 398 | D26: Všeobecná pokladní správa | E26: snížit výdaje v kap. 398 Všeobecná pokladní správa v rámci specifického ukazatele „Vládní rozpočtová rezerva“ o částku 30 000 000 Kč. Změna se promítne do dalších adekvátních ukazatelů. | H26: 0 | J26: 30000000 | K26: 30000000
A27: 5 | C27: 329 | D27: Min. zemědělství | E27: zvýšit výdaje v kap. 329 Min. zemědělství v rámci specifického ukazatele "Podpora lesního hospodářství" o částku 1 000 000 000 Kč s určením na obnovu lesů po kůrovcové kalamitě. Změna se promítne do dalších adekvátních ukazatelů. | F27: 1000000000 | H27: =SUM(F27:G27) -> 1000000000 | K27: =SUM(I27:J27) -> 0 | L27: K. Tureček, J. Kott, M. Balaštíková, D. Pražák, J. Faltýnek, D. Ryba, M. Kukla, J. Volný | N27: 5558
C28: 398 | D28: Všeobecná pokladní správa | E28: snížit výdaje v kap. 398 Všeobecná pokladní správa v rámci specifického ukazatele "Vládní rozpočtová rezerva" o částku 1 000 000 000 Kč. Změna se promítne do dalších adekvátních ukazatelů. | H28: 0 | J28: 1000000000 | K28: 1000000000
A29: 6 | C29: 329 | D29: Min. zemědělství | E29: zvýšit výdaje v kap. 329 Min. zemědělství v rámci specifického ukazatele "Ostatní výdaje na státní politiku resortu, inspekční, kontrolní a výzkumnou činnost" o částku 100 000 000 Kč a zároveň se zvyšuje průřezový ukazatel "Výdaje na výzkum, vývoj a inovace celkem včetně programů spolufinancovaných z prostředků zahraničních programů" a "v tom: ze státního rozpočtu celkem" a "v tom: účelová podpora celkem" s účelem podpoření aplikovaného výzkumu a vývoje k udržení konkurenceschopnosti v zemědělství. Změna se promítne do dalších adekvátních ukazatelů. | F29: 100000000 | H29: 100000000 | K29: 0 | L29: K. Tureček, M. Balaštíková, J. Faltýnek, J. Volný, J. Kott, D. Pražák | N29: 5576
C30: 398 | D30: Všeobecná pokladní správa | E30: snížit výdaje v kap. 398 Všeobecná pokladní správa v rámci specifického ukazatele "Vládní rozpočtová rezerva" o částku 100 000 000 Kč. Změna se promítne do dalších adekvátních ukazatelů. | H30: 0 | J30: 100000000 | K30: 100000000
A31: 7 | C31: 329 | D31: Min. zemědělství | E31: zvýšit výdaje v kap. 329 Min. zemědělství v rámci specifického ukazatele "Podpora agrárního sektoru" a "v tom: dotace Státnímu zemědělskému intervenčnímu fondu" o částku 60 000 000 Kč s účelem navýšit národní dotace směřující k dotačnímu titulu 1. D Podpora včelařství. Změna se promítne do dalších adekvátních ukazatelů. | F31: 60000000 | H31: 60000000 | K31: 0 | L31: K. Tureček, J. Kott, M. Balaštíková, J. Faltýnek, D. Pražák, J. Volný | N31: 5564
C32: 398 | D32: Všeobecná pokladní správa | E32: snížit výdaje v kap. 398 Všeobecná pokladní správa v rámci specifického ukazatele "Vládní rozpočtová rezerva" o částku 60 000 000 Kč. Změna se promítne do dalších adekvátních ukazatelů. | H32: 0 | J32: 60000000 | K32: 60000000
A33: 8 | C33: 329 | D33: Min. zemědělství | E33: zvýšit výdaje v kap. 329 Min. zemědělství v rámci specifického ukazatele "Podpora agrárního sektoru" a "v tom: dotace Státnímu zemědělskému intervenčnímu fondu" o částku 24 000 000 Kč s určením na dotační titul 15 Podpora mimoprodukčních funkcí rybníků kompenzující rybářským subjektům újmy vzniklé zajišťováním vodohodspodářských a celospolečenských funkcí rybníků. Změna se promítne do dalších adekvátních ukazatelů. | F33: 24000000 | H33: 24000000 | K33: 0 | L33: K. Tureček, J. Kott, M. Balaštíková, J. Faltýnek, D. Pražák, J. Volný | N33: 5559
C34: 398 | D34: Všeobecná pokladní správa | E34: snížit výdaje v kap. 398 Všeobecná pokladní správa v rámci specifického ukazatele "Vládní rozpočtová rezerva" o částku 24 000 000 Kč. Změna se promítne do dalších adekvátních ukazatelů. | H34: 0 | J34: 24000000 | K34: 24000000
A35: 9 | C35: 329 | D35: Min. zemědělství | E35: zvýšit výdaje v kap. 329 Min. zemědělství v rámci specifického ukazatele "Ostatní výdaje na státní politiku resortu, inspekční, kontrolní a výzkumnou činnost" o částku 3 000 000 Kč určenou na podporu odborných periodik pro spolky myslivců. Změna se promítne do dalších adekvátních ukazatelů. | F35: 3000000 | H35: 3000000 | K35: 0 | L35: K. Tureček, J. Kott, M. Balaštíková, J. Faltýnek, D. Pražák, J. Volný | N35: 5561
C36: 398 | D36: Všeobecná pokladní správa | E36: snížit výdaje v kap. 398 Všeobecná pokladní správa v rámci specifického ukazatele "Vládní rozpočtová rezerva" o částku 3 000 000 Kč. Změna se promítne do dalších adekvátních ukazatelů. | H36: 0 | J36: 3000000 | K36: 3000000
A37: 10 | C37: 329 | D37: Min. zemědělství | E37: zvýšit výdaje v kap. 329 Min. zemědělství v rámci specifického ukazatele "Ostatní výdaje na státní politiku resortu, inspekční, kontrolní a výzkumnou činnost" o částku 3 000 000 Kč určenou na podporu odborných periodik pro spolky rybářů. Změna se promítne do dalších adekvátních ukazatelů. | F37: 3000000 | H37: 3000000 | K37: 0 | L37: K. Tureček, J. Kott, M. Balaštíková, J. Faltýnek, D. Pražák, J. Volný | N37: 5562
C38: 398 | D38: Všeobecná pokladní správa | E38: snížit výdaje v kap. 398 Všeobecná pokladní správa v rámci specifického ukazatele "Vládní rozpočtová rezerva" o částku 3 000 000 Kč. Změna se promítne do dalších adekvátních ukazatelů. | H38: 0 | J38: 3000000 | K38: 3000000
A39: 11 | C39: 329 | D39: Min. zemědělství | E39: zvýšit výdaje v kap. 329 Min. zemědělství v rámci specifického ukazatele "Ostatní výdaje na státní politiku resortu, inspekční, kontrolní a výzkumnou činnost" o částku 5 000 000 Kč určenou na odborná periodika spolkům včelařů. Změna se promítne do dalších adekvátních ukazatelů. | F39: 5000000 | H39: 5000000 | K39: 0 | L39: K. Tureček, J. Kott, M. Balaštíková, J. Faltýnek, D. Pražák, M. Kukla, J. Volný | N39: 5566
C40: 398 | D40: Všeobecná pokladní správa | E40: snížit výdaje v kap. 398 Všeobecná pokladní správa v rámci specifického ukazatele "Vládní rozpočtová rezerva" o částku 5 000 000 Kč. Změna se promítne do dalších adekvátních ukazatelů. | H40: 0 | J40: 5000000 | K40: 5000000
A41: 12 | C41: 329 | D41: Min. zemědělství | E41: zvýšit výdaje v kap. 329 Min. zemědělství v rámci specifického ukazatele "Ostatní výdaje na státní politiku resortu, inspekční, kontrolní a výzkumnou činnost" o částku 2 000 000 Kč určenou na odborná periodika spolkům zahrádkářů. Změna se promítne do dalších adekvátních ukazatelů. | F41: 2000000 | H41: 2000000 | K41: 0 | L41: K. Tureček, J. Kott, M. Balaštíková, J. Faltýnek, D. Pražák, J. Volný | N41: 5567
C42: 398 | D42: Všeobecná pokladní správa | E42: snížit výdaje v kap. 398 Všeobecná pokladní správa v rámci specifického ukazatele "Vládní rozpočtová rezerva" o částku 2 000 000 Kč. Změna se promítne do dalších adekvátních ukazatelů. | H42: 0 | J42: 2000000 | K42: 2000000
A43: 13 | C43: 334 | D43: Min. kultury | E43: zvýšit výdaje v kap. 334 Min. kultury v rámci specifického ukazatele "Záchrana a obnova kulturních památek, veřejné služby muzeí" a "v tom:programy ochrany a péče o kulturní statky" o částku 34 000 000 Kč s účelem podpořit Program 13452 a podprogram Výkupy předmětů kulturní hodnoty mimořádného významu. Změna se promítne do dalších adekvátních ukazatelů. | F43: 34000000 | H43: =SUM(F43:G43) -> 34000000 | K43: 0 | L43: M. Baxa | N43: 5579 | O43: SOUHLAS
C44: 334 | D44: Min. Kultury | E44: snížit výdaje v kap. 334 Min. kultury v rámci specifického ukazatele "Příspěvkové organizace zřízené Ministerstvem kultury" a "v tom: příspěvek na provoz příspěvkovým organizacím" o částku 34 000 000 Kč. Změna se promítne do dalších adekvátních ukazatelů. | H44: 0 | I44: 34000000 | K44: 34000000
A45: 14 | C45: 334 | D45: Min. kultury | E45: zvýšit výdaje v kap. 334 Min. kultury v rámci specifického ukazatele "v tom: kulturní dědictví ve vlastnictví státu, podporované evropskými fondy" o částku 20 000 000 Kč. Dále se zvyšuje specifický ukazatel "Kulturní služby, podpora živého umění" a "v tom: rozvoj kulturního a kreativního sektoru" o částku 20 000 000 Kč s účelem pokrýt výdaje na spolufinancování evropských projektů, primárně DPH. Změna se promítne do dalších adekvátních ukazatelů. | F45: 40000000 | H45: =SUM(F45:G45) -> 40000000 | K45: 0 | L45: M. Baxa | N45: 5580 | O45: SOUHLAS
C46: 334 | D46: Min. Kultury | E46: snížit výdaje v kap. 334 Min. kultury v rámci specifického ukazatele "Příspěvkové organizace zřízené Ministerstvem kultury" o částku 20 000 000 Kč a zároveň snížit "v tom: příspěvek na provoz příspěvkovým organizacím" o částku 40 000 000 Kč. Změna se promítne do dalších adekvátních ukazatelů. | H46: 0 | I46: 40000000 | K46: 40000000
A47: 15 | C47: 333 | D47: Min. školství, mládeže a tělovýchovy | E47: zvýšit výdaje v kap. 333 Min. školství, mládeže a tělovýchovy v rámci specifického ukazatele "Podpora činnosti v oblasti sportu" a "v tom: školní a vysokoškolský sport" o částku 300 000 000 Kč k rozvoji mládežnické činnosti a posílení komunitního života v oblasti sportu. Změna se promítne do dalších adekvátních ukazatelů. | F47: 300000000 | H47: 300000000 | K47: 0 | L47: M. Novák | N47: 5590
C48: 398 | D48: Všeobecná pokladní správa | E48: snížit výdaje v kap. 398 Všeobecná pokladní správa v rámci specifického ukazatele "Vládní rozpočtová rezerva" o částku 300 000 000 Kč. Změna se promítne do dalších adekvátních ukazatelů. | H48: 0 | J48: 300000000 | K48: 300000000
A49: 16 | C49: 314 | D49: Min. vnitra | E49: zvýšit výdaje v kap. 314 Min. vnitra v rámci specifického ukazatele "Výdaje na zabezpečení plnění úkolů Ministerstva vnitra a ostatních organizačních složek státu" o částku 15 000 000 Kč a zároveň se o tuto částku zvyšuje průřezový ukazatel "Program sociální prevence a prevence kriminality" s určením na snížení negativních dopadů drogového zneužívání na společnost a k prevenci závislosti a kriminality. Změna se promítne do dalších adekvátních ukazatelů. | F49: 15000000 | H49: 15000000 | K49: 0 | L49: M. Novák | N49: 5591
C50: 398 | D50: Všeobecná pokladní správa | E50: snížit výdaje v kap. 398 Všeobecná pokladní správa v rámci specifického ukazatele "Vládní rozpočtová rezerva" o částku 15 000 000 Kč. Změna se promítne do dalších adekvátních ukazatelů. | H50: 0 | J50: 15000000 | K50: 15000000
A51: 17 | C51: 334 | D51: Min. kultury | E51: zvýšit výdaje v kap. 334 Min. kultury v rámci specifického ukazatele "Kulturní služby, podpora živého umění" a "v tom: rozvoj kulturního a kreativního sektoru" o částku 300 000 000 Kč s účelem podpořit zejména ochotnické divadlo, spolky udržující lidové tradice a dílny vyrábějící lidové kroje. Změna se promítne do dalších adekvátních ukazatelů. | F51: 300000000 | H51: 300000000 | K51: 0 | L51: M. Novák, R. Vondráček | N51: 5592
C52: 398 | D52: Všeobecná pokladní správa | E52: snížit výdaje v kap. 398 Všeobecná pokladní správa v rámci specifického ukazatele "Vládní rozpočtová rezerva" o částku 300 000 000 Kč. Změna se promítne do dalších adekvátních ukazatelů. | H52: 0 | J52: 300000000 | K52: 300000000
A53: 18 | C53: 317 | D53: Min. pro místní rozvoj | E53: zvýšit výdaje v kap. 317 Min. pro místní rozvoj v rámci specifického ukazatele "Podpora bydlení" a "v tom: dotace SFPI na podporu bydlení" o částku 8 500 000 000 Kč určenou na podpoření dostupnosti bydlení. Změna se promítne do dalších adekvátních ukazatelů. | F53: 8500000000 | H53: 8500000000 | K53: 0 | L53: M. Pošarová | N53: 5543
C54: 322 | D54: Min. průmyslu a obchodu | E54: snížit výdaje v kap. 322 Min. průmyslu a obchodu v rámci specifického ukazatele "Dotace na obnovitelné zdroje energie" o částku 8 500 000 000 Kč. Změna se promítne do dalších adekvátních ukazatelů. | I54: 8500000000 | K54: 8500000000
A55: 19 | C55: 317 | D55: Min. pro místní rozvoj | E55: zvýšit výdaje v kap. 317 Min. pro místní rozvoj v rámci specifického ukazatele "Podpora bydlení" a "v tom: dotace SFPI na podporu bydlení" o částku 5 000 000 000 Kč určenou na podpoření dostupnosti bydlení. Změna se promítne do dalších adekvátních ukazatelů. | F55: 5000000000 | H55: =SUM(F55:G55) -> 5000000000 | K55: 0 | L55: M. Pošarová | N55: 5544
C56: 322 | D56: Min. průmyslu a obchodu | E56: snížit výdaje v kap. 322 Min. průmyslu a obchodu v rámci specifického ukazatele "Dotace na obnovitelné zdroje energie" o částku 5 000 000 000 Kč. Změna se promítne do dalších adekvátních ukazatelů. | H56: =SUM(F56:G56) -> 0 | I56: 5000000000 | K56: 5000000000
A57: 20 | C57: 317 | D57: Min. pro místní rozvoj | E57: zvýšit výdaje v kap. 317 Min. pro místní rozvoj v rámci specifického ukazatele "Podpora regionálního rozvoje a cestovního ruchu" a "v tom: Horská služba" a také "v tom" ostatní výdaje na regionální rozvoj a cestovní ruch" o částku 5 000 000 000 Kč určené na podporu obcí, měst, správy památek a turistiky včetně financování Horské služby. Změna se promítne do dalších adekvátních ukazatelů. | F57: 5000000000 | H57: =SUM(F57:G57) -> 5000000000 | K57: =SUM(I57:J57) -> 0 | L57: M. Pošarová | N57: 5545
C58: 333 | D58: Min. školství, mládeže a tělovýchovy | E58: snížit výdaje v kap. 333 Min. školství, mládeže a tělovýchovy v rámci specifického ukazatele "Výdaje na programy spolufinancované z rozpočtu Evropské unie a z prostředků finančních mechanismů mimo výzkum, vývoj a inovace" o částku 5 000 000 000 Kč. Změna se promítne do dalších adekvátních ukazatelů. | H58: 0 | I58: 5000000000 | K58: 5000000000
A59: 21 | C59: 317 | D59: Min. pro místní rozvoj | E59: zvýšit výdaje v kap. 317 Min. pro místní rozvoj v rámci specifického ukazatele "Podpora regionálního rozvoje a cestovního ruchu" a "v tom: Horská služba" a také "v tom" ostatní výdaje na regionální rozvoj a cestovní ruch" o částku 3 000 000 000 Kč určené na podporu obcí, měst, správy památek a turistiky včetně financování Horské služby. Změna se promítne do dalších adekvátních ukazatelů. | F59: 3000000000 | H59: =SUM(F59:G59) -> 3000000000 | K59: =SUM(I59:J59) -> 0 | L59: M. Pošarová | N59: 5546
C60: 333 | D60: Min. školství, mládeže a tělovýchovy | E60: snížit výdaje v kap. 333 Min. školství, mládeže a tělovýchovy v rámci specifického ukazatele "Výdaje na programy spolufinancované z rozpočtu Evropské unie a z prostředků finančních mechanismů mimo výzkum, vývoj a inovace" o částku 3 000 000 000 Kč. Změna se promítne do dalších adekvátních ukazatelů. | H60: =SUM(F60:G60) -> 0 | I60: 3000000000 | K60: =SUM(I60:J60) -> 3000000000
A61: 22 | C61: 398 | D61: Všeobecná pokladní správa | E61: zvýšit výdaje v kap. 398 Všeobecná pokladní správa v rámci specifického ukazatele "Rezerva na řešení krizových situací, jejich předcházení a odstraňování jejich následků (zákon č. 240/2000 Sb., ve znění pozdějších předpisů)" o částku 3 000 000 000 Kč. Změna se promítne do dalších adekvátních ukazatelů. | G61: 3000000000 | H61: =SUM(F61:G61) -> 3000000000 | K61: =SUM(I61:J61) -> 0 | L61: M. Pošarová | N61: 5547
C62: 333 | D62: Min. školství, mládeže a tělovýchovy | E62: snížit výdaje v kap. 333 Min. školství, mládeže a tělovýchovy v rámci specifického ukazatele "Výdaje na programy spolufinancované z rozpočtu Evropské unie a z prostředků finančních mechanismů mimo výzkum, vývoj a inovace" o částku 3 000 000 000 Kč. Změna se promítne do dalších adekvátních ukazatelů. | H62: =SUM(F62:G62) -> 0 | I62: 3000000000 | K62: =SUM(I62:J62) -> 3000000000
A63: 23 | C63: 398 | D63: Všeobecná pokladní správa | E63: zvýšit výdaje v kap. 398 Všeobecná pokladní správa v rámci specifického ukazatele "Rezerva na řešení krizových situací, jejich předcházení a odstraňování jejich následků (zákon č. 240/2000 Sb., ve znění pozdějších předpisů)" o částku 2 000 000 000 Kč. Změna se promítne do dalších adekvátních ukazatelů. | G63: 2000000000 | H63: =SUM(F63:G63) -> 2000000000 | K63: =SUM(I63:J63) -> 0 | L63: M. Pošarová | N63: 5548
C64: 333 | D64: Min. školství, mládeže a tělovýchovy | E64: snížit výdaje v kap. 333 Min. školství, mládeže a tělovýchovy v rámci specifického ukazatele "Výdaje na programy spolufinancované z rozpočtu Evropské unie a z prostředků finančních mechanismů mimo výzkum, vývoj a inovace" o částku 2 000 000 000 Kč. Změna se promítne do dalších adekvátních ukazatelů. | H64: 0 | I64: 2000000000 | K64: 2000000000
A65: 24 | C65: 321 | D65: Grantová agentura ČR | E65: zvýšit výdaje v kap. 321 Grantová agentura v rámci specifického ukazatele "Dotace jiným subjektům" o částku 481 300 000 Kč a dále se o tuto částku zvyšuje průřezový ukazatel "Výdaje na výzkum, vývoj a inovace celkem včetně programů spolufinancovaných z prostředků zahraničních programů" a "v tom: ze státního rozpočtu celkem" a "v tom: účelová podpora celkem" s účelem navýšit rozpočet o 10% na projekty v rámci mezinárodní skupiny, juniorské projekty a LA granty. Změna se promítne do dalších adekvátních ukazatelů. | F65: 481300000 | H65: 481300000 | K65: 0 | L65: J. Špičák, V. Adámková, K. Havlíček, S. Fridrich | N65: 5599
C66: 398 | D66: Všeobecná pokladní správa | E66: snížit výdaje v kap. 398 Všeobecná pokladní správa v rámci specifického ukazatele "Vládní rozpočtová rezerva" o částku 481 300 000 Kč. Změna se promítne do dalších adekvátních ukazatelů. | H66: 0 | J66: 481300000 | K66: 481300000
A67: 25 | C67: 361 | D67: Akademie věd ČR | E67: zvýšit výdaje v kap. 361 Akademie věd ČR v rámci specifického ukazatele "Infrastruktura výzkumu" o částku 795 243 264 Kč a zároveň se o tuto částku zvyšuje průřezový ukazatel "Výdaje na výzkum, vývoj a inovace celkem včetně programů spolufinancovaných z prostředků zahraničních programů" a "v tom: ze státního rozpočtu celkem" a "v tom: institucionální podpora celkem" s účelem navýšit rozpočet o 10%. Změna se promítne do dalších adekvátních ukazatelů. | F67: 795243264 | H67: 795243264 | K67: 0 | L67: J. Špičák, V. Adámková, K. Havlíček, S. Fridrich | N67: 5600
C68: 398 | D68: Všeobecná pokladní správa | E68: snížit výdaje v kap. 398 Všeobecná pokladní správa v rámci specifického ukazatele "Vládní rozpočtová rezerva" o částku 795 243 264 Kč. Změna se promítne do dalších adekvátních ukazatelů. | H68: 0 | J68: 795243264 | K68: 795243264
A69: 26 | C69: 377 | D69: Technologická agentura ČR | E69: zvýšit výdaje v kap. 377 Technologická agentura v rámci specifického ukazatele "Dotace jiným subjektům" o částku 659 582 707 Kč a zároveň se o tuto částku zvyšuje průřezový ukazatel "Výdaje na výzkum, vývoj a inovace celkem včetně programů spolufinancovaných z prostředků zahraničních programů" a "v tom: ze státního rozpočtu celkem" a "v tom: účelová podpora celkem" s účelem zvýšit rozpočet o cca 10%. Změna se promítne do dalších adekvátních ukazatelů. | F69: 659582707 | H69: 659582707 | K69: 0 | L69: J. Špičák, V. Adámková, K. Havlíček, S. Fridrich | N69: 5601
C70: 398 | D70: Všeobecná pokladní správa | E70: snížit výdaje v kap. 398 Všeobecná pokladní správa v rámci specifického ukazatele "Vládní rozpočtová rezerva" o částku 659 582 707 Kč. Změna se promítne do dalších adekvátních ukazatelů. | H70: 0 | J70: 659582707 | K70: 659582707
A71: 27 | C71: 333 | D71: Min. školství, mládeže a tělovýchovy | E71: zvýšit výdaje v kap. 333 Min. školství, mládeže a tělovýchovy v rámci specifického ukazatele "Věda a vysoké školy" a "v tom: vysoké školy" o částku 2 000 000 000 Kč určené na dokrytí reálného poklesu platů mezi lety 2021-2023 ve vysokoškolské sféře. Změna se promítne do dalších adekvátních ukazatelů. | F71: 2000000000 | H71: 2000000000 | K71: 0 | L71: K. Rais | N71: 5553
C72: 398 | D72: Všeobecná pokladní správa | E72: snížit výdaje v kap. 398 Všeobecná pokladní správa v rámci specifického ukazatele "Vládní rozpočtová rezerva" o částku 1 000 000 000 Kč. Změna se promítne do dalších adekvátních ukazatelů. | H72: 0 | J72: 1000000000 | K72: 1000000000
C73: 396 | D73: Státní dluh | E73: snížit výdaje v kap. 396 Státní dluh v rámci specifického ukazatele "Obsluha státního dluhu" o částku 1 000 000 000 Kč. Změna se promítne do dalších adekvátních ukazatelů. | H73: 0 | I73: 1000000000 | K73: 1000000000
A74: 28 | C74: 333 | D74: Min. školství, mládeže a tělovýchovy | E74: zvýšit výdaje v kap. 333 Min. školství, mládeže a tělovýchovy v rámci specifického ukazatele "Věda a vysoké školy" a "v tom: výzkum, experimentální vývoj a inovace" o částku 2 000 000 000 Kč určené na specifický výzkum zahrnutý do účelové podpory VVI a na náklady na studenty doktorského studia. Změna se promítne do dalších adekvátních ukazatelů. | F74: 2000000000 | H74: 2000000000 | K74: 0 | L74: K. Rais | N74: 5554
C75: 398 | D75: Všeobecná pokladní správa | E75: snížit výdaje v kap. 398 Všeobecná pokladní správa v rámci specifického ukazatele "Vládní rozpočtová rezerva" o částku 1 000 000 000 Kč. Změna se promítne do dalších adekvátních ukazatelů. | H75: =SUM(F75:G75) -> 0 | J75: 1000000000 | K75: =SUM(I75:J75) -> 1000000000
C76: 396 | D76: Státní dluh | E76: snížit výdaje v kap. 396 Státní dluh v rámci specifického ukazatele "Obsluha státního dluhu" o částku 1 000 000 000 Kč. Změna se promítne do dalších adekvátních ukazatelů. | H76: 0 | I76: 1000000000 | K76: 1000000000
A77: 29 | C77: 333 | D77: Min. školství, mládeže a tělovýchovy | E77: zvýšit výdaje v kap. 333 Min. školství, mládeže a tělovýchovy v rámci specifického ukazatele "Výdaje regionálního školství a přímo řízených organizací" o částku 1 143 076 658 Kč určenou na tzv. ONIV = ostatní neinvestiční výdaje z nichž se hradí prostředky na pomůcky a učebnice pro žáky aj. Změna se promítne do dalších adekvátních ukazatelů. | F77: =1143076658 -> 1143076658 | H77: =SUM(F77:G77) -> 1143076658 | K77: =SUM(I77:J77) -> 0 | L77: K. Rais, J. Berkovcová | N77: 5555
C78: 398 | D78: Všeobecná pokladní správa | E78: snížit výdaje v kap. 398 Všeobecná pokladní správa v rámci specifického ukazatele "Vládní rozpočtová rezerva" o částku 1 000 000 000 Kč. Změna se promítne do dalších adekvátních ukazatelů. | H78: 0 | J78: 1000000000 | K78: 1000000000
C79: 396 | D79: Státní dluh | E79: snížit výdaje v kap. 396 Státní dluh v rámci specifického ukazatele "Obsluha státního dluhu" o částku 143 076 658 Kč. Změna se promítne do dalších adekvátních ukazatelů. | H79: 0 | I79: 143076658 | K79: 143076658
A80: 30 | C80: 333 | D80: Min. školství, mládeže a tělovýchovy | E80: zvýšit výdaje v kap. 333 Min. školství, mládeže a tělovýchovy v rámci specifického ukazatele "Výdaje regionálního školství a přímo řízených organizací" o částku 2 400 000 000 Kč na Soukromé školství - normativní financování (PVS 502 001 0016) s určením na financování soukromého školství včetně soukromých mateřškých škol. Změna se promítne do dalších adekvátních ukazatelů. | F80: 2400000000 | H80: 2400000000 | K80: 0 | L80: K. Rais | N80: 5560
C81: 398 | D81: Všeobecná pokladní správa | E81: snížit výdaje v kap. 398 Všeobecná pokladní správa v rámci specifického ukazatele "Vládní rozpočtová rezerva" o částku 1 000 000 000 Kč. Změna se promítne do dalších adekvátních ukazatelů. | H81: 0 | J81: 1000000000 | K81: 1000000000
C82: 396 | D82: Státní dluh | E82: snížit výdaje v kap. 396 Státní dluh v rámci specifického ukazatele "Obsluha státního dluhu" o částku 1 400 000 000 Kč. Změna se promítne do dalších adekvátních ukazatelů. | H82: 0 | I82: 1400000000 | K82: 1400000000
A83: 31 | C83: 334 | D83: Ministerstvo kultury | E83: zvyšit výdaje v kap. 334 Min. kultury v rámci specifického ukazatele „Záchrana a obnova kulturních památek, veřejné služby muzeí" a "v tom: programy na záchranu a obnovu kulturních památek“ o částku 500 000 000 Kč. Změna se promítne do dalších adekvátních ukazatelů. | F83: 500000000 | H83: 500000000 | K83: 0 | L83: K. Maříková | N83: 5265
C84: 306 | D84: Min. zahraničních věcí | E84: snížit výdaje v kap. 306 Ministerstva zahraničních věcí v rámci specifického ukazatele „Výdaje na plnění úkolů Ministerstva zahraničních věcí" a "v tom: program humanitární, stabilizační, rozvojové a hospodářské asistence Ukrajině“ o částku 500 000 000 Kč. Změna se promítne do dalších adekvátních ukazatelů. | H84: 0 | I84: 500000000 | K84: 500000000
A85: 32 | C85: 335 | D85: Ministerstvo zdravotnictví | E85: zvýšit výdaje v kap. 335 Ministerstva zdravotnictví v rámci specifického ukazatele „Výzkum a vývoj ve zdravotnictví“ o částku 800 000 000 Kč. Změna se promítne do dalších adekvátních ukazatelů. | F85: 800000000 | H85: 800000000 | K85: 0 | L85: K. Maříková | N85: 5266
C86: 398 | D86: Všeobecná pokladní správa | E86: snížit výdaje v kap. 398 Všeobecná pokladní správa v rámci specifického ukazatele „Odvody do rozpočtu Evropské unie“ o částku 800 000 000 Kč. Změna se promítne do dalších adekvátních ukazatelů. | H86: 0 | J86: 800000000 | K86: 800000000 | M86: Tato změna se promítne do textové části zákona a dalších adekvátních ukazatelů.
A87: 33 | C87: 314 | D87: Ministerstvo vnitra | E87: zvýšit výdaje v kap. 314 Ministerstva vnitra v rámci specifického ukazatele „Výdaje Policie ČR“ o částku 900 000 000 Kč určené ke zlepšení bezpečnostní situace v ČR. Změna se promítne do dalších adekvátních ukazatelů. | F87: 900000000 | H87: =SUM(F87:G87) -> 900000000 | K87: =SUM(I87:J87) -> 0 | L87: K. Maříková | N87: 5279
C88: 398 | D88: Všeobecná pokladní správa | E88: snížit výdaje v kap. 398 Všeobecná pokladní správa v rámci specifického ukazatele „Odvody do rozpočtu Evropské unie“ o částku 900 000 000 Kč. Změna se promítne do dalších adekvátních ukazatelů. | H88: 0 | J88: 900000000 | K88: 900000000 | M88: Tato změna se promítne do textové části zákona a dalších adekvátních ukazatelů.
A89: 34 | C89: 313 | D89: Min. práce a soc. věcí | E89: zvýšit výdaje v kap. 313 Min. práce a sociálních věcí v rámci specifického ukazatele „Dávky důchodového pojištění“ o částku 5 300 000 000 Kč. Změna se promítne do dalších adekvátních ukazatelů. | F89: 5300000000 | H89: =SUM(F89:G89) -> 5300000000 | K89: =SUM(I89:J89) -> 0 | L89: K. Maříková | N89: 5280
C90: 398 | D90: Všeobecná pokladní správa | E90: snížit výdaje v kap. 398 Všeobecná pokladní správa v rámci specifického ukazatele „Odvody do rozpočtu Evropské unie“ o částku 5 300 000 000 Kč. Změna se promítne do dalších adekvátních ukazatelů. | H90: =SUM(F90:G90) -> 0 | J90: 5300000000 | K90: =SUM(I90:J90) -> 5300000000 | M90: Tato změna se promítne do textové části zákona a dalších adekvátních ukazatelů.
A91: 35 | C91: 313 | D91: Min. práce a soc. věcí | E91: zvýšit výdaje v kap. 313 Min. práce a sociálních věcí v rámci specifického ukazatele „Dávky osobám se zdravotním postižením“ o částku 1 800 000 000 Kč. Změna se promítne do dalších adekvátních ukazatelů. | F91: 1800000000 | H91: =SUM(F91:G91) -> 1800000000 | K91: =SUM(I91:J91) -> 0 | L91: K. Maříková | N91: 5281
C92: 398 | D92: Všeobecná pokladní správa | E92: snížit výdaje v kap. 398 Všeobecná pokladní správa v rámci specifického ukazatele „Odvody do rozpočtu Evropské unie“ o částku 1 800 000 000 Kč. Změna se promítne do dalších adekvátních ukazatelů. | H92: 0 | J92: 1800000000 | K92: 1800000000 | M92: Tato změna se promítne do textové části zákona a dalších adekvátních ukazatelů.
A93: 36 | C93: 314 | D93: Ministerstvo vnitra | E93: zvýšit výdaje v kap. 314 Ministerstva vnitra v rámci specifického ukazatele „Výdaje Hasičského záchranného sboru ČR“ , o částku 1 900 000 000 Kč s cílem posílit vybavení, výcvik a personální zajištění k posílení vnitřní bezpečnosti státu. Změna se promítne do dalších adekvátních ukazatelů. | F93: 1900000000 | H93: =SUM(F93:G93) -> 1900000000 | K93: =SUM(I93:J93) -> 0 | L93: K. Maříková | N93: 5282
C94: 398 | D94: Všeobecná pokladní správa | E94: snížit výdaje v kap. 398 Všeobecná pokladní správa v rámci specifického ukazatele „Odvody do rozpočtu Evropské unie“ o částku 1 900 000 000 Kč. Změna se promítne do dalších adekvátních ukazatelů. | H94: =SUM(F94:G94) -> 0 | J94: 1900000000 | K94: =SUM(I94:J94) -> 1900000000 | M94: Tato změna se promítne do textové části zákona a dalších adekvátních ukazatelů.
A95: 37 | C95: 336 | D95: Min. spravedlnosti | E95: zvýšit výdaje v kap. 336 Min. spravedlnosti v rámci specifického ukazatele "Výdajový blok - Výdaje vězeňská část" a "v tom: ostatní výdaje vězeňské části" o částku 210 000 000 Kč s určením na plánované opravy a údržbu zejména nemovitého majetku a ostatní věcné výdaje. Změna se promítne do dalších adekvátních ukazatelů. | F95: 210000000 | H95: =SUM(F95:G95) -> 210000000 | K95: =SUM(I95:J95) -> 0 | L95: P. Sadovský, M. Ratiborský, T. Helebrant, D. Ryba, R. Králíček | N95: 5574
C96: 398 | D96: Všeobecná pokladní správa | E96: snížit výdaje v kap. 398 Všeobecná pokladní správa v rámci specifického ukazatele "Vládní rozpočtová rezerva" o částku 210 000 000 Kč. Změna se promítne do dalších adekvátních ukazatelů. | H96: 0 | J96: 210000000 | K96: 210000000
A97: 38 | C97: 317 | D97: Min. pro místní rozvoj | E97: zvýšit výdaje v kap. 317 Min. pro místní rozvoj v rámci specifického ukazatele "Podpora bydlení" a "v tom: ostatní výdaje na podporu bydlení" o částku 1 500 000 000 Kč a dále v rámci specifického ukazatele "Podpora regionálního rozvoje a cestovního ruchu" a "v tom: ostatní výdaje na regionální rozvoj a cestovní ruch" o částku 2 500 000 000 Kč s určením na podporu bydlení a IROP/školy. Změna se promítne do dalších adekvátních ukazatelů. | F97: 4000000000 | H97: =SUM(F97:G97) -> 4000000000 | K97: =SUM(I97:J97) -> 0 | L97: J. Michálek, K. Kocmanová, O. Richterová, I. Bartoš | N97: 5639
C98: 313 | D98: Min. práce a soc. věcí | E98: zvýšit výdaje v kap. 313 Min. práce a soc. věcí v rámci specifického ukazatele "Dávky státní sociální podpory a pěstounské péče" o částku 550 000 000 Kč a dále v rámci specifického ukazatele "Ostatní výdaje organizačních složek státu" o částku 315 000 000 Kč k podpoření rodičovského příspěvku a dětských skupin. Změna se promítne do dalších adekvátních ukazatelů. | F98: =550000000+315000000 -> 865000000 | H98: 865000000 | K98: 0
C99: 333 | D99: Min. školství, mládeže a tělovýchovy | E99: zvýšit výdaje v kap. 333 Min. školství, mládeže a tělovýchovy v rámci specifického ukazatele "Výdaje regionálního školství a přímo řízených organizací" o částku 1 650 000 000 Kč s určením na zajištění platů učitelů na 130% průměrné mzdy a dostatku školních psychologů. Změna se promítne do dalších adekvátních ukazatelů. | F99: 1650000000 | H99: 1650000000 | K99: 0
C100: 304 | D100: Úřad vlády ČR | E100: zvýšit výdaje v kap. 304 Úřad vlády v rámci specifického ukazatele "Výdaje na zabezpečení úkolů Úřadu vlády ČR" a "v tom: výdaje vlastního Úřadu vlády ČR" o částku 140 000 000 Kč s určením na prevenci závislostí a strategickou komunikaci. Změna se promítne do dalších adekvátních ukazatelů. | F100: 140000000 | H100: 140000000 | K100: 0
C101: 336 | D101: Min. spravedlnosti | E101: zvýšit výdaje v kap. 336 Min. spravedlnosti v rámci specifického ukazatele "Výdajový blok - Výdaje justiční část" a "v tom: ostatní výdaje justiční části" o částku 6 000 000 Kč s určením pro Odbor střetu zájmů a boje proti korupci. Změna se promítne do dalších adekvátních ukazatelů. | F101: 6000000 | H101: 6000000 | K101: 0
C102: 322 | D102: Min. průmyslu a obchodu | E102: snížit výdaje v kap. 322 Min. průmyslu a obchodu v rámci specifického ukazatele "Podpora podnikání" o částku 4 661 000 000 Kč snížením podnikatelských dotací. Změna se promítne do dalších adekvátních ukazatelů. | H102: 0 | I102: 4661000000 | K102: 4661000000
C103: 329 | D103: Min. zemědělství | E103: snížit výdaje v kap. 329 Min. zemědělství v rámci specifického ukazatele "Podpora agrárního sektoru" a "v tom: ostatní výdaje" o částku 2 000 000 000 Kč snížením národních dotací. Změna se promítne do dalších adekvátních ukazatelů. | H103: 0 | I103: 2000000000 | K103: 2000000000
A104: 39 | C104: 336 | D104: Min. spravedlnosti | E104: zvýšit výdaje v kap. 336 Min. spravedlnosti v rámci specifického ukazatele "Výdajový blok - Výdaje justiční části" a "v tom: ostatní výdaje justiční části" o částku 6 357 538 Kč s určením na zřízení 6 systemizovaných míst státních zaměstnanců v souvislosti s přijetím vládního návrhu zákona o lobbování. A dále "v tom" ostatní výdaje justiční části" o částku 2 000 000 Kč s účelem navýšit prostředky dotačního titulu Z3607 Prevence korupčního jednání. Změna se promítne do dalších adekvátních ukazatelů. | F104: 8357538 | H104: 8357538 | K104: 0 | L104: J. Michálek, K. Kocmanová, O. Richterová, I. Bartoš | N104: 5642
C105: 333 | D105: Min. školství, mládeže a tělovýchovy | E105: zvýšit výdaje v kap. 333 Min. školství, mládeže a tělovýchovy v rámci specifického ukazatele "Ostatní výdaje na zabezpečení úkolů resortu“ o částku 18 000 000 Kč s určením na kvalifikační program NPI - Lídr Školy ve výši 5 000 000 ke zřízení celostátního programu dostupnosti hygienických pomůcek ve školách ve výši 13 000 000 Kč. Změna se promítne do dalších adekvátních ukazatelů. | F105: 18000000 | H105: 18000000 | K105: 0
C106: 353 | D106: Úřad pro ochranu hospodářské soutěže | E106: snížit výdaje v kap. 353 Úřad pro ochranu hospodářské soutěže v rámci specifického ukazatele "Výdaje na zabezpečení plnění úkolů Úřadu pro ochranu hospodářské soutěže" o částku 26 357 538 Kč. Změna se promítne do dalších adekvátních ukazatelů. | H106: 0 | I106: 26357538 | K106: 26357538
A107: 40 | C107: 307 | D107: Ministerstvo obrany | E107: zvýšit výdaje v kap. 307 Min. obrany v rámci specifického ukazatele „Zajištění obrany ČR silami Armády ČR“ a výdajového okruhu 501002 "Zajistit činnost a rozvoj bojových sil, sil bojové podpory a bojového zabezpečení" o částku 15 814 418 755 Kč k posílení schopnosti Armády ČR a provést doplnění potřebné výzbroje, techniky a materiálu. Změna se promítne do dalších adekvátních ukazatelů kapitoly. | F107: 15814418755 | H107: 15814418755 | K107: 0 | L107: R. Vích | N107: 5296
C108: 307 | D108: Ministerstvo obrany | E108: snížit výdaje v kap. 307 Min. obrany v rámci specifického ukazatele „Zajištění obrany ČR silami Armády ČR“ a ve výdajovém okruhu 501002 "Zajistit činnost a rozvoj bojových sil, sil bojové podpory a bojového zabezpečení" o částku 15 814 418 755 Kč, a to tak, že v programu 107 40 se ruší akce: i) Udržení a rozvoj schopností nadzvukového letectva II v hodnotě 15 814 418 755 Kč. Změna se promítne do dalších adekvátních ukazatelů kapitoly. | H108: 0 | I108: 15814418755 | K108: 15814418755
A109: 41 | C109: 334 | D109: Min. kultury | E109: zvýšit výdaje v kap. 334 Min. kultury v rámci specifického ukazatele "Záchrana a obnova kulturních památek, veřejné služby muzeí" a "v tom:programy ochrany a péče o kulturní statky" o částku 10 000 000 Kč s účelem podpořit dotační program 13453 Akviziční fond pro podporu současného umění. Změna se promítne do dalších adekvátních ukazatelů. | F109: 10000000 | H109: =SUM(F109:G109) -> 10000000 | K109: =SUM(I109:J109) -> 0 | L109: L. Brož, O. Babka | N109: 5604
C110: 398 | D110: Všeobecná pokladní správa | E110: snížit výdaje v kap. 398 Všeobecná pokladní správa v rámci specifického ukazatele "Vládní rozpočtová rezerva" o částku 10 000 000 Kč. Změna se promítne do dalších adekvátních ukazatelů. | H110: 0 | J110: 10000000 | K110: 10000000
A111: 42 | C111: 306 | D111: Min. zahraničních věcí | E111: zvýšit výdaje v kap. 306 Min. zahraničních věcí v rámci specifického ukazatele "Výdaje na plnění úkolů Ministerstva zahraničních věcí" a "v tom: ostatní výdaje na plnění úkolů Ministerstva zahraničních věcí" o částku 398 401 537 Kč s určením na provoz informačních systémů v ústředí i na zastupitelských úřadech. Změna se promítne do dalších adekvátních ukazatelů. | F111: 398401537 | H111: =SUM(F111:G111) -> 398401537 | K111: =SUM(I111:J111) -> 0 | L111: J. Strýček, R. Brabec, T. Kohoutek, J. Kubík, K. Rais, M. Ratiborský, R. Vondráček | N111: 5587
C112: 398 | D112: Všeobecná pokladní správa | E112: snížit výdaje v kap. 398 Všeobecná pokladní správa v rámci specifického ukazatele "Vládní rozpočtová rezerva" o částku 398 401 537 Kč. Změna se promítne do dalších adekvátních ukazatelů. | H112: 0 | J112: 398401537 | K112: 398401537
A113: 43 | C113: 306 | D113: Min. zahraničních věcí | E113: zvýšit výdaje v kap. 306 Min. zahraničních věcí v rámci specifického ukazatele "Výdaje na plnění úkolů Ministerstva zahraničních věcí" a "v tom: ostatní výdaje na plnění úkolů Ministerstva zahraničních věcí" o částku 178 478 588 Kč s určením na podpoření ekonomické a vědecké diplomacie. Změna se promítne do dalších adekvátních ukazatelů. | F113: 178478588 | H113: 178478588 | K113: 0 | L113: J. Strýček, R. Brabec, T. Kohoutek, J. Kubík, K. Rais, M. Ratiborský, R. Vondráček | N113: 5588
C114: 398 | D114: Všeobecná pokladní správa | E114: snížit výdaje v kap. 398 Všeobecná pokladní správa v rámci specifického ukazatele "Vládní rozpočtová rezerva" o částku 178 478 588 Kč. Změna se promítne do dalších adekvátních ukazatelů. | H114: 0 | J114: 178478588 | K114: 178478588
A115: 44 | C115: 306 | D115: Min. zahraničních věcí | E115: zvýšit výdaje v kap. 306 Min. zahraničních věcí v rámci specifického ukazatele "Výdaje na plnění úkolů Ministerstva zahraničních věcí" a "v tom: ostatní výdaje na plnění úkolů Ministerstva zahraničních věcí" o částku 3 740 299 Kč a zároveň se o tuto částku zvyšuje průřezový ukazatel "Výdaje na výzkum, vývoj a inovace celkem včetně programů spolufinancovaných z prostředků zahraničních programů" a "v tom: ze státního rozpočtu celkem" a "v tom: institucionální podpora celkem" s určením na institucionální podporu Ústavu mezinárodních vztahů. Změna se promítne do dalších adekvátních ukazatelů. | F115: 3740299 | H115: 3740299 | K115: 0 | L115: J. Strýček, R. Brabec, T. Kohoutek, J. Kubík, K. Rais, M. Ratiborský, R. Vondráček | N115: 5589
C116: 398 | D116: Všeobecná pokladní správa | E116: snížit výdaje v kap. 398 Všeobecná pokladní správa v rámci specifického ukazatele "Vládní rozpočtová rezerva" o částku 3 740 299 Kč. Změna se promítne do dalších adekvátních ukazatelů. | H116: 0 | J116: 3740299 | K116: 3740299
A117: 45 | C117: 322 | D117: Min. průmyslu a obchodu | E117: zvýšit výdaje v kap. 322 Min. průmyslu a obchodu v rámci specifického ukazatele "Podpora podnikání" o částku 39 000 000 Kč a zároveň se o tuto částku zvyšuje průřezový ukazatel "Výdaje na výzkum, vývoj a inovace celkem včetně programů spolufinancovaných z prostředků zahraničních programů" a "v tom: ze státního rozpočtu celkem" a "v tom: institucionální podpora celkem" s účelem podpořit dlouhodobý koncepční rozvoj výzkumných organizací. Změna se promítne do dalších adekvátních ukazatelů. | F117: 39000000 | H117: 39000000 | K117: 0 | L117: J. Strýček | N117: 5594
C118: 398 | D118: Všeobecná pokladní správa | E118: snížit výdaje v kap. 398 Všeobecná pokladní správa v rámci specifického ukazatele "Vládní rozpočtová rezerva" o částku 39 000 000 Kč. Změna se promítne do dalších adekvátních ukazatelů. | H118: 0 | J118: 39000000 | K118: 39000000
A119: 46 | C119: 322 | D119: Min. průmyslu a obchodu | E119: zvýšit výdaje v kap. 322 Min. průmyslu a obchodu v rámci specifického ukazatele "Výdaje spojené s další činností resortu" o částku 15 000 000 Kč s určením na podporu nevládních neziskových organizací v oblasti ochrany spotřebitele. Změna se promítne do dalších adekvátních ukazatelů. | F119: 15000000 | H119: =SUM(F119:G119) -> 15000000 | K119: =SUM(I119:J119) -> 0 | L119: P. Nacher | N119: 5552 | O119: SOUHLAS
C120: 398 | D120: Všeobecná pokladní správa | E120: snížit výdaje v kap. 398 Všeobecná pokladní správa v rámci specifického ukazatele „Vládní rozpočtová rezerva“ o částku 15 000 000 Kč. Změna se promítne do dalších adekvátních ukazatelů. | H120: 0 | J120: 15000000 | K120: 15000000
A121: 47 | C121: 336 | D121: Min. spravedlnosti | E121: zvýšit výdaje v kap. 336 Min. spravedlnosti v rámci specifického ukazatele "Výdajový blok - Výdaje justiční část" a "v tom: ostatní výdaje justiční části" o částku 65 852 159 Kč a zároveň se zvyšují o tuto částku průřezové ukazatele "Platy zaměstnanců a ostatní platby za provedenou práci" a dále "Platy zaměstnanců v pracovním poměru vyjma zaměstnanců na služebních místech" s určením pro zaměstnance Probační a mediační služby. Změna se promítne do dalších adekvátních ukazatelů. | F121: 65852159 | H121: =SUM(F121:G121) -> 65852159 | K121: =SUM(I121:J121) -> 0 | L121: I. Hendrych, H. Válková, R. Vondráček, J. Bělica | N121: 5597
C122: 398 | D122: Všeobecná pokladní správa | E122: snížit výdaje v kap. 398 Všeobecná pokladní správa v rámci specifického ukazatele "Vládní rozpočtová rezerva" o částku 65 852 159 Kč. Změna se promítne do dalších adekvátních ukazatelů. | H122: 0 | J122: 65852159 | K122: 65852159
A123: 48 | C123: 317 | D123: Min. pro místní rozvoj | E123: zvýšit výdaje v kap. 317 Min. pro místní rozvoj v rámci specifického ukazatele "Podpora bydlení" a "v tom: dotace SFPI na podporu bydlení" o částku 1 000 000 000 Kč s určením na rozvoj bytové politiky, výstavbu, rekonstrukci a k podpoře nonprofitního bydlení. Změna se promítne do dalších adekvátních ukazatelů. | F123: 1000000000 | H123: 1000000000 | K123: 0 | L123: M. Wenzl | N123: 5606
C124: 307 | D124: Min. obrany | E124: snížit výdaje v kap. 307 Min. obrany v rámci specifického ukazatele „Zajištění obrany ČR silami Armády ČR“ o částku 1 000 000 000 Kč. Změna se promítne do dalších adekvátních ukazatelů. | H124: 0 | I124: 1000000000 | K124: 1000000000
A125: 49 | C125: 333 | D125: Min. školství, mládeže a tělovýchovy | E125: zvýšit výdaje v kap. 333 Min. školství, mládeže a tělovýchovy v rámci specifického ukazatele "Věda a vysoké školy" a "v tom: vysoké školy" o částku 445 000 000 Kč s určením na odměny mentorům ve zdravotnických zařízeních za výuku povinné odborné praxe. Změna se promítne do dalších adekvátních ukazatelů. | F125: 445000000 | H125: 445000000 | K125: 0 | L125: I. Mádlová, V. Adámková, M. Kukla | N125: 5578
C126: 398 | D126: Všeobecná pokladní správa | E126: snížit výdaje v kap. 398 Všeobecná pokladní správa v rámci specifického ukazatele "Vládní rozpočtová rezerva" o částku 445 000 000 Kč. Změna se promítne do dalších adekvátních ukazatelů. | H126: 0 | J126: 445000000 | K126: 445000000
A127: 50 | C127: 314 | D127: Min. vnitra | E127: zvýšit výdaje v kap. 314 Min. vnitra v rámci specifického ukazatele "Výdaje Policie ČR" o částku 775 139 538 Kč a dále specifického ukazatele "Výdaje Hasičského záchranného sboru ČR" o částku 191 573 397 Kč a dále specifického ukazatele "Výdaje na zabezpečení plnění úkolů Ministerstva vnitra a ostatních organizačních složek státu" o částku 107 318 819 Kč a dále specifického ukazatele "Výdaje na sportovní reprezentaci" o částku 3 769 868 Kč. Zároveň se zvyšují průřezové ukazatele "Platy zaměstnanců a ostatní platby za provedenou práci" o částku 772 735 365 Kč a "Povinné pojistné placené zaměstnavatelem" o částku 261 184 555 Kč a dále "Základní příděl fondu kulturních a sociálních potřeb" o částku 7 727 354 Kč a dále "Platy zaměstnanců v pracovním poměru vyjma zaměstnanců na služebních místech" o částku 99 470 470 Kč a "Platy zaměstnanců bezpečnostních sborů a ozbrojených sil ve služebním poměru" o částku 640 684 468 Kč a dále "Platy zaměstnanců na služebních místech dle zákona o státní službe" o částku 32 580 427 Kč s určením na posílení prostředků na platy a příslušenství o 1,9% na celkovou úroveň 6,9% pro zaměstnance resortu. Změna se promítne do dalších adekvátních ukazatelů. | F127: 1077801622 | H127: =SUM(F127:G127) -> 1077801622 | K127: =SUM(I127:J127) -> 0 | L127: P. Letocha | N127: 5612 | O127: SOUHLAS
C128: 314 | D128: Min. vnitra | E128: snížit výdaje v kap. 314 Min. vnitra v rámci specifického ukazatele "Ostatní sociální dávky" o částku 1 077 801 622 Kč. Změna se promítne do dalších adekvátních ukazatelů. | H128: 0 | I128: 1077801622 | K128: 1077801622
A129: 51 | C129: 398 | D129: Všeobecná pokladní správa | E129: zvýšit výdaje v kap. 398 Všeobecná pokladní správa v rámci specifického ukazatele "Další prostředky pro územní samosprávné celky" o částku 45 000 000 Kč s určením na úhradu nákladů na nákup zpravodajského modulu České tiskové kanceláře pro místní samosprávy. Změna se promítne do dalších adekvátních ukazatelů. | G129: 45000000 | H129: =SUM(F129:G129) -> 45000000 | K129: =SUM(I129:J129) -> 0 | L129: P. Letocha, P. Staněk, J. Bureš, | N129: 5641
C130: 398 | D130: Všeobecná pokladní správa | E130: snížit výdaje v kap. 398 Všeobecná pokladní správa v rámci specifického ukazatele "Vládní rozpočtová rezerva" o částku 45 000 000 Kč. Změna se promítne do dalších adekvátních ukazatelů. | H130: 0 | J130: 45000000 | K130: 45000000
A131: 52 | C131: 333 | D131: Min. školství, mládeže a tělovýchovy | E131: zvýšit výdaje v kap. 333 Min. školství, mládeže a tělovýchovy v rámci specifického ukazatele "Podpora činnosti v oblasti mládeže" o částku 20 621 848 Kč s účelem podpořit předmětové olympiády a soutěže pro talentovanou mládež a dorovnat alokaci úrovně roku 2024. Změna se promítne do dalších adekvátních ukazatelů. | F131: 20621848 | H131: 20621848 | K131: 0 | L131: L. Knechtová, J. Berkovcová | N131: 5614
C132: 398 | D132: Všeobecná pokladní správa | E132: snížit výdaje v kap. 398 Všeobecná pokladní správa v rámci specifického ukazatele "Vládní rozpočtová rezerva" o částku 20 621 848 Kč. Změna se promítne do dalších adekvátních ukazatelů. | H132: 0 | J132: 20621848 | K132: 20621848
A133: 53 | C133: 314 | D133: Min. vnitra | E133: zvýšit výdaje v kap. 314 Min. vnitra v rámci specifického ukazatele "Výdaje Hasičského záchranného sboru ČR" o částku 191 573 397 Kč s účelem navýšit platy HZS ČR o 6,9%. Zároveň se zvyšuje průřezový ukazatel "Platy zaměstnanců bezpečnostních sborů a ozbrojených sil ve služebním poměru" o částku 133 564 781 Kč a průřezový ukazatel "Platy zaměstnanců v pracovním poměru vyjma zaměstnanců na služebních místech" o částku 8 551 982 Kč a průřezový ukazatel "Povinné pojistné placené zaměstnavatelem" o částku 48 035 466 Kč a průřezový ukazatel "Základní příděl fondu kulturních a sociálních potřeb" o částku 1 421 168 Kč. Změna se promítne do dalších adekvátních ukazatelů. | F133: =133564781+8551982+48035466+1421168 -> 191573397 | H133: 191573397 | K133: 0 | L133: D. Ryba, H. Lang, J. Mašek, P. Růžička, R. Králíček, P. Sadovský | N133: 5568
C134: 314 | D134: Min. vnitra | E134: zvýšit výdaje v kap. 314 Min. vnitra v rámci specifického ukazatele "Výdaje Policie ČR" o částku 775 385 736 Kč s účelem navýšit platy Policie ČR o 6,9%. Zároveň se zvyšuje průřezový ukazatel "Platy zaměstnanců bezpečnostních sborů a ozbrojených sil ve služebním poměru" o částku 505 663 376 Kč a průřezový ukazatel "Platy zaměstnanců v pracovním poměru vyjma zaměstnanců na služebních místech" o částku 69 548 594 Kč a průřezový ukazatel "Povinné pojistné placené zaměstnavatelem" o částku 194 421 646 Kč a průřezový ukazatel "Základní příděl fondu kulturních a sociálních potřeb" o částku 5 752 120 Kč. Změna se promítne do dalších adekvátních ukazatelů. | F134: =505663376+69548594+194421646+5752120 -> 775385736 | H134: 775385736 | K134: 0
C135: 398 | D135: Všeobecná pokladní správa | E135: snížit výdaje v kap. 398 Všeobecná pokladní správa v rámci specifického ukazatele "Vládní rozpočtová rezerva" o částku 966 959 133 Kč. Změna se promítne do dalších adekvátních ukazatelů. | H135: 0 | J135: 966959133 | K135: 966959133
A136: 54 | C136: 313 | D136: Min. práce a soc. věcí | E136: zvýšit výdaje v kap. 313 Min. práce a soc. věcí v rámci specifického ukazatele "Neinvestiční nedávkové transfery" o částku 3 000 000 000 Kč určenou na Státní příspěvek na provoz dětských skupin (PVS 5140060011 a §433900). Změna se promítne do dalších adekvátních ukazatelů. | F136: 3000000000 | H136: 3000000000 | K136: 0 | L136: L. Šafránková | N136: 5519
C137: 322 | D137: Min. průmyslu a obchodu | E137: snížit výdaje v kap. 322 Min. průmyslu a obchodu v rámci specifického ukazatele "Dotace na obnovitelné zdroje energie" o částku 3 000 000 000 Kč. Změna se promítne do dalších adekvátních ukazatelů. | H137: 0 | I137: 3000000000 | K137: 3000000000
A138: 55 | C138: 313 | D138: Min. práce a soc. věcí | E138: zvýšit výdaje v kap. 313 Min. práce a soc. věcí v rámci specifického ukazatele "Dávky osobám se zdravotním postižením" o částku 2 000 000 000 Kč určenou na valorizaci příspěvku na mobilitu a pro osoby využívající přístroje plicní ventilace. Změna se promítne do dalších adekvátních ukazatelů. | F138: 2000000000 | H138: 2000000000 | K138: 0 | L138: L. Šafránková | N138: 5520
C139: 322 | D139: Min. průmyslu a obchodu | E139: snížit výdaje v kap. 322 Min. průmyslu a obchodu v rámci specifického ukazatele "Dotace na obnovitelné zdroje energie" o částku 2 000 000 000 Kč. Změna se promítne do dalších adekvátních ukazatelů. | H139: 0 | I139: 2000000000 | K139: 2000000000
A140: 56 | C140: 313 | D140: Min. práce a soc. věcí | E140: zvýšit výdaje v kap. 313 Min. práce a soc. věcí v rámci specifického ukazatele "Dávky důchodového pojištění" o částku 20 000 000 000 Kč s účelem valorizovat důchody. Změna se promítne do dalších adekvátních ukazatelů. | F140: 20000000000 | H140: 20000000000 | K140: =SUM(I140:J140) -> 0 | L140: L. Šafránková | N140: 5521
C141: 398 | D141: Všeobecná pokladní správa | E141: snížit výdaje v kap. 398 Všeobecná pokladní správa v rámci specifického ukazatele „Odvody do rozpočtu Evropské unie“ o částku 20 000 000 000 Kč. Změna se promítne do dalších adekvátních ukazatelů. | H141: 0 | J141: 20000000000 | K141: =SUM(I141:J141) -> 20000000000 | M141: Tato změna se promítne do textové části zákona a dalších adekvátních ukazatelů.
A142: 57 | C142: 313 | D142: Min. práce a soc. věcí | E142: zvýšit výdaje v kap. 313 Min. práce a soc. věcí v rámci specifického ukazatele "Příspěvek na péči podle zákona o sociálních službách" o částku 5 000 000 000 Kč s účelem zvýšit příspěvek zejména v prvním stupni závislosti. Změna se promítne do dalších adekvátních ukazatelů. | F142: 5000000000 | H142: =SUM(F142:G142) -> 5000000000 | K142: 0 | L142: L. Šafránková | N142: 5522
C143: 333 | D143: Min. školství, mládeže a tělovýchovy | E143: snížit výdaje v kap. 333 Min. školství, mládeže a tělovýchovy v rámci specifického ukazatele "Výdaje na programy spolufinancované z rozpočtu Evropské unie a z prostředků finančních mechanismů mimo výzkum, vývoj a inovace" o částku 5 000 000 000 Kč. Změna se promítne do dalších adekvátních ukazatelů. | H143: 0 | I143: 5000000000 | K143: 5000000000
A144: 58 | C144: 313 | D144: Min. práce a soc. věcí | E144: zvýšit výdaje v kap. 313 Min. práce a soc. věcí v rámci specifického ukazatele "Dávky státní sociální podpory a pěstounské péče" o částku 300 000 000 Kč s účelem zvýšit o tuto část okruh Dávky pěstounské péče. Změna se promítne do dalších adekvátních ukazatelů. | F144: 300000000 | H144: =SUM(F144:G144) -> 300000000 | K144: =SUM(I144:J144) -> 0 | L144: L. Šafránková | N144: 5523
C145: 304 | D145: Úřad vlády ČR | E145: snížit výdaje v kap. 304 Úřad vlády České republiky v rámci specifického ukazatele "Výdaje na zabezpečení úkolů Úřadu vlády ČR" a "v tom: výdaje spojené s činností poradních orgánů vlády" o částku 300 000 000 Kč. Změna se promítne do dalších adekvátních ukazatelů. | H145: 0 | I145: 300000000 | K145: 300000000
A146: 59 | C146: 313 | D146: Min. práce a soc. věcí | E146: zvýšit výdaje v kap. 313 Min. práce a soc. věcí v rámci specifického ukazatele "Ostatní výdaje organizačních složek státu" o částku 600 000 000 Kč a zároveň se o tuto částku zvyšuje průřezový ukazatel "Platy zaměstnanců a ostatní platby za provedenou práci" určenou na platy pracovníků v sociálních službách. Změna se promítne do dalších adekvátních ukazatelů. | F146: 600000000 | H146: 600000000 | K146: 0 | L146: L. Šafránková, R. Rozvoral | N146: 5524
C147: 306 | D147: Min. zahraničních věcí | E147: snížit výdaje v kap. 306 Min. zahraničních věcí v rámci průřezového ukazatele "Zahraniční rozvojová spolupráce" o částku 600 000 000 Kč. Změna se promítne do dalších adekvátních ukazatelů. | H147: 0 | I147: 600000000 | K147: 600000000
A148: 60 | C148: 313 | D148: Min. práce a soc. věcí | E148: zvýšit výdaje v kap. 313 Min. práce a soc. věcí v rámci specifického ukazatele "Dávky státní sociální podpory a pěstounské péče" o částku 2 000 000 000 Kč s účelem zvýšit o tuto část okruh Dávky státní sociální podpory určenou zejména pro Rodičovský příspěvek (§413400), Přídavek na dítě (§413100) a Porodné (§413300). Změna se promítne do dalších adekvátních ukazatelů. | F148: 2000000000 | H148: 2000000000 | K148: 0 | L148: L. Šafránková | N148: 5525
C149: 364 | D149: Digitální a informační agentura | E149: snížit výdaje v kap. 364 Digitální a informační agentura v rámci specifického ukazatele "Výdaje na zabezpečení plnění úkolů Digitální a informační agentury" o částku 2 000 000 000 Kč. Změna se promítne do dalších adekvátních ukazatelů. | H149: 0 | I149: 2000000000 | K149: 2000000000
A150: 61 | C150: 398 | D150: Všeobecná pokladní správa | E150: zvýšit výdaje v kap. 398 Všeobecná pokladní správa v rámci specifického ukazatele "Sociální výdaje; náhrady; neziskové a podobné organizace" o částku 10 000 000 Kč, příčemž se zde zřizuje položka "Český svaz bojovníků za svobodu" s částkou 5 000 000 Kč a dále položka "Československá obec legionářská" s částkou 5 000 000 Kč. Tato změna se promítne i do přílohy č. 9 zákona a do dalších adekvátních ukazatelů. | G150: 10000000 | H150: 10000000 | K150: 0 | L150: J. Kobza | M150: Tato změna se promítne i do přílohy č. 9 zákona a do dalších adekvátních ukazatelů. | N150: 5514
C151: 398 | D151: Všeobecná pokladní správa | E151: snížit výdaje v kap. 398 Všeobecná pokladní správa v rámci specifického ukazatele „Odvody do rozpočtu Evropské unie“ o částku 10 000 000 Kč. Změna se promítne do dalších adekvátních ukazatelů. | H151: 0 | J151: 10000000 | K151: 10000000 | M151: Tato změna se promítne do textové části zákona a dalších adekvátních ukazatelů.
A152: 62 | C152: 398 | D152: Všeobecná pokladní správa | E152: zvýšit výdaje v kap. 398 Všeobecná pokladní správa v rámci specifického ukazatele "Rezerva na řešení krizových situací, jejich předcházení a odstraňování jejich následků (zákon č. 240/2000 Sb., ve znění poudějších předpisů)" o částku 1 000 000 000 Kč a dále zvýšit specifický ukazatel "Rezerva na mimořádné výdaje podle zákona č. 239/2000 Sb., o integrovaném záchranném systému" o částku 500 000 000 Kč. Změna se promítne do dalších adekvátních ukazatelů. | G152: 1500000000 | H152: 1500000000 | K152: 0 | L152: J. Kobza | N152: 5515
C153: 306 | D153: Min. zahraničních věcí | E153: snížit výdaje v kap. 306 Ministerstva zahraničních věcí v rámci specifického ukazatele „Výdaje na plnění úkolů Ministerstva zahraničních věcí" a "v tom: příspěvky mezinárodním organizacím a peněžní dary vybraným institucím do zahraničí" o částku 1 500 000 000 Kč. Změna se promítne do dalších adekvátních ukazatelů. | H153: 0 | I153: 1500000000 | K153: 1500000000
A154: 63 | C154: 398 | D154: Všeobecná pokladní správa | E154: zvýšit výdaje v kap. 398 Všeobecná pokladní správa v rámci specifického ukazatele „Vládní rozpočtová rezerva“ o částku 500 000 000 Kč. Změna se promítne do dalších adekvátních ukazatelů. | G154: 500000000 | H154: 500000000 | K154: 0 | L154: J. Kobza | N154: 5516
C155: 306 | D155: Min. zahraničních věcí | E155: snížit výdaje v kap. 306 Ministerstva zahraničních věcí v rámci specifického ukazatele „Výdaje na plnění úkolů Ministerstva zahraničních věcí" a "v tom: program humanitární, stabilizační, rozvojové a hospodářské asistence Ukrajině" o částku 500 000 000 Kč. Změna se promítne do dalších adekvátních ukazatelů. | H155: 0 | I155: 500000000 | K155: 500000000
A156: 64 | C156: 398 | D156: Všeobecná pokladní správa | E156: zvýšit výdaje v kap. 398 Všeobecná pokladní správa v rámci specifického ukazatele "Rezerva na mimořádné výdaje podle zákona č. 239/2000 Sb., o integrovaném záchranném systému" o částku 100 000 000 Kč. Změna se promítne do dalších adekvátních ukazatelů. | G156: 100000000 | H156: 100000000 | K156: 0 | L156: J. Kobza | N156: 5517
C157: 306 | D157: Min. zahraničních věcí | E157: snížit výdaje v kap. 306 Ministerstva zahraničních věcí v rámci specifického ukazatele „Výdaje na plnění úkolů Ministerstva zahraničních věcí" a "v tom: transformační spolupráce" o částku 100 000 000 Kč. Změna se promítne do dalších adekvátních ukazatelů. | H157: 0 | I157: 100000000 | K157: 100000000
A158: 65 | C158: 362 | D158: Národní sportovní agentura | E158: zvýšit výdaje v kap. 362 Národní sportovní agentura v rámci specifického ukazatele "Dotace do oblasti sportu" a "v tom: rozvoj a podpora sportu" o částku 2 000 000 000 Kč s tím, že se zároveň zvyšuje průřezový ukazatel "Výdaje vedené v informačním systému programového financování EDS/SMVS celkem" o částku 1 500 000 000 Kč s účelem posílit investice do sportovní infrastruktury a dále k pokrytí poplatků z dohod a dobrovolnickou práci. Změna se promítne do dalších adekvátních ukazatelů. | F158: 2000000000 | H158: =SUM(F158:G158) -> 2000000000 | K158: =SUM(I158:J158) -> 0 | L158: J. Richter, A. Babiš | N158: 5610
C159: 327 | D159: Min. dopravy | E159: snížit výdaje v kap 327. Min dopravy v rámci specifického ukazatele "Dotace pro Státní fond dopravní infrastruktury" a "v tom: ostatní dotace pro Státní fond dopravní infrastruktury" o částku 2 000 000 000 Kč a zároveň se o tuto částku snižuje průřezový ukazatel "Výdaje vedené v informačním systému programového financování EDS/SMVS celkem". Změna se promítne do dalších adekvátních ukazatelů. | H159: =SUM(F159:G159) -> 0 | I159: 2000000000 | K159: =SUM(I159:J159) -> 2000000000
A160: 66 | C160: 329 | D160: Min. zemědělství | E160: zvýšit výdaje v kap. 329 Min. zemědělství v rámci specifického ukazatele "Podpora agrárního sektoru" a "v tom: dotace Státnímu zemědělskému intervenčnímu fondu" o částku 1 000 000 000 Kč s účelem navýšit dotace směřující ke stabilitě venkovského prostoru. Změna se promítne do dalších adekvátních ukazatelů. | F160: 1000000000 | H160: =SUM(F160:G160) -> 1000000000 | K160: =SUM(I160:J160) -> 0 | L160: M. Balaštíková, J. Kott, J. Faltýnek, D. Pražák, K. Tureček, J. Volný | N160: 5563
C161: 398 | D161: Všeobecná pokladní správa | E161: snížit výdaje v kap. 398 Všeobecná pokladní správa v rámci specifického ukazatele "Vládní rozpočtová rezerva" o částku 1 000 000 000 Kč. Změna se promítne do dalších adekvátních ukazatelů. | H161: 0 | J161: 1000000000 | K161: 1000000000
A162: 67 | C162: 329 | D162: Min. zemědělství | E162: zvýšit výdaje v kap. 329 Min. zemědělství v rámci specifického ukazatele "Podpora agrárního sektoru" a "v tom: dotace Státnímu zemědělskému intervenčnímu fondu" o částku 450 000 000 Kč s určením na podporu konkurenceschopnosti zemědělsko-potravinářského průmyslu a znovuzařazení dotačního titulu 13 do národních podpor zemědělství. Změna se promítne do dalších adekvátních ukazatelů. | F162: 450000000 | H162: 450000000 | K162: 0 | L162: M. Balaštíková, J. Faltýnek, J. Kott, D. Pražák, K. Tureček, J. Volný | N162: 5617
C163: 398 | D163: Všeobecná pokladní správa | E163: snížit výdaje v kap. 398 Všeobecná pokladní správa v rámci specifického ukazatele "Vládní rozpočtová rezerva" o částku 450 000 000 Kč. Změna se promítne do dalších adekvátních ukazatelů. | H163: 0 | J163: 450000000 | K163: 450000000
A164: 68 | C164: 335 | D164: Min. zdravotnictví | E164: zvýšit výdaje v kap. 335 Min. zdravotnictví v rámci specifického ukazatele "Výzkum a vývoj ve zdravotnictví" o částku 200 000 000 Kč určenou na praktický výzkum a především na obnovení výroby léků na území ČR. Změna se promítne do dalších adekvátních ukazatelů. | F164: 200000000 | H164: 200000000 | K164: 0 | L164: I. Štefanová | N164: 5538
C165: 306 | D165: Min. zahraničních věcí | E165: snížit výdaje v kap. 306 Min. zahraničních věcí v rámci specifického ukazatele "Výdaje na plnění úkolů Ministerstva zahraničních věcí" a "v tom: program humanitární, stabilizační, rozvojové a hospodářské asistence Ukrajině" o částku 200 000 000 Kč. Změna se promítne do dalších adekvátních ukazatelů. | H165: 0 | I165: 200000000 | K165: 200000000
A166: 69 | C166: 335 | D166: Min. zdravotnictví | E166: zvýšit výdaje v kap. 335 Min. zdravotnictví v rámci specifického ukazatele "Výzkum a vývoj ve zdravotnictví" o částku 300 000 000 Kč určenou na praktický výzkum a především na obnovení výroby léků na území ČR. Změna se promítne do dalších adekvátních ukazatelů. | F166: 300000000 | H166: 300000000 | K166: 0 | L166: I. Štefanová | N166: 5539
C167: 306 | D167: Min. zahraničních věcí | E167: snížit výdaje v kap. 306 Min. zahraničních věcí v rámci specifického ukazatele "Výdaje na plnění úkolů Ministerstva zahraničních věcí" a "v tom: program humanitární, stabilizační, rozvojové a hospodářské asistence Ukrajině" o částku 300 000 000 Kč. Změna se promítne do dalších adekvátních ukazatelů. | H167: 0 | I167: 300000000 | K167: 300000000
A168: 70 | C168: 335 | D168: Min. zdravotnictví | E168: zvýšit výdaje v kap. 335 Min. zdravotnictví v rámci specifického ukazatele "Výzkum a vývoj ve zdravotnictví" o částku 400 000 000 Kč určenou na praktický výzkum a především na obnovení výroby léků na území ČR. Změna se promítne do dalších adekvátních ukazatelů. | F168: 400000000 | H168: 400000000 | K168: 0 | L168: I. Štefanová | N168: 5540
C169: 306 | D169: Min. zahraničních věcí | E169: snížit výdaje v kap. 306 Min. zahraničních věcí v rámci specifického ukazatele "Výdaje na plnění úkolů Ministerstva zahraničních věcí" a "v tom: program humanitární, stabilizační, rozvojové a hospodářské asistence Ukrajině" o částku 400 000 000 Kč. Změna se promítne do dalších adekvátních ukazatelů. | H169: 0 | I169: 400000000 | K169: 400000000
A170: 71 | C170: 336 | D170: Min. spravedlnosti | E170: zvýšit výdaje v kap. 336 Min. spravedlnosti v rámci průřezového ukazatele "Platy zaměstnanců v pracovním poměru vyjma zaměstnanců na služebních místech" o částku 533 361 352 Kč . Cílem je stabilizovat personální situaci v justici a přispět k vyšší bezpečnosti ve věznicích v souladu s usnesením vlády č. 735/2024. Zároveň se také zvyšuje specifický ukazatel „Výdajový blok – Výdaje vězeňská část“ a "v tom: ostatní výdaje vězeňské části“ o částku 164 878 399 Kč a také specifický ukazatel "Výdajový blok - Výdaje justiční část" a "v tom: ostatní výdaje justiční části" o částku 368 482 953 Kč. Změny se promítnou do dalších adekvátních ukazatelů. | F170: 533361352 | H170: 533361352 | K170: 0 | L170: V. Munzar | N170: 5645 | O170: SOUHLAS
C171: 336 | D171: Min. spravedlnosti | E171: snížit výdaje v kap. 336 Min. spravedlnosti v rámci specifického ukazatele „Výdajový blok – Výdaje justiční část“ a "v tom: platy soudců" o částku 395 682 352 Kč a dále "v tom: platy státních zástupců" o částku 137 679 000 Kč v souladu s usnesením vlády č. 735/2024. Zároveň se také snižuje průřezový ukazatel "Platy zaměstnanců v pracovním poměru odvozené od platů ústavních činitelů" o částku 533 361 352 Kč. Zároveň se snižuje specifický ukazatel "Výdajový blok - Výdaje justiční část" o částku 164 878 399 Kč. Změny se promítnou do dalších adekvátních ukazatelů. | H171: 0 | I171: 533361352 | K171: 533361352
A172: 72 | C172: 333 | D172: Min. školství, mládeže a tělovýchovy | E172: zvýšit výdaje v kap. 333 Min. školství, mládeže a tělovýchovy v rámci specifického ukazatele "Výdaje regionálního školství a přímo řízených organizací" o částku 1 000 000 000 Kč s určením na financování školních psychologů. Změna se promítne do dalších adekvátních ukazatelů. | F172: 1000000000 | H172: 1000000000 | K172: 0 | L172: J. Berkovcová | N172: 5623
C173: 398 | D173: Všeobecná pokladní správa | E173: snížit výdaje v kap. 398 Všeobecná pokladní správa v rámci specifického ukazatele "Vládní rozpočtová rezerva" o částku 1 000 000 000 Kč. Změna se promítne do dalších adekvátních ukazatelů. | H173: 0 | J173: 1000000000 | K173: 1000000000
A174: 73 | C174: 333 | D174: Min. školství, mládeže a tělovýchovy | E174: zvýšit výdaje v kap. 333 Min. školství, mládeže a tělovýchovy v rámci specifického ukazatele "Podpora činnosti v oblasti mládeže" o částku 7 000 000 Kč s účelem podpořit dotace na výchovně-vzdělávací volnočasové aktivity pro děti a mládež. Změna se promítne do dalších adekvátních ukazatelů. | F174: 7000000 | H174: 7000000 | K174: 0 | L174: J. Berkovcová, K. Rais | N174: 5624
C175: 398 | D175: Všeobecná pokladní správa | E175: snížit výdaje v kap. 398 Všeobecná pokladní správa v rámci specifického ukazatele "Vládní rozpočtová rezerva" o částku 7 000 000 Kč. Změna se promítne do dalších adekvátních ukazatelů. | H175: 0 | J175: 7000000 | K175: 7000000
A176: 74 | C176: 333 | D176: Min. školství, mládeže a tělovýchovy | E176: zvýšit výdaje v kap. 333 Min. školství, mládeže a tělovýchovy v rámci specifického ukazatele "Výdaje regionálního školství a přímo řízených organizací" o částku 10 000 000 000 Kč s určením na financování nepedagogických pracovníků. Změna se promítne do dalších adekvátních ukazatelů. | F176: 10000000000 | H176: =SUM(F176:G176) -> 10000000000 | K176: =SUM(I176:J176) -> 0 | L176: J. Berkovcová | N176: 5625
C177: 396 | D177: Státní dluh | E177: snížit výdaje v kap. 396 Státní dluh v rámci specifického ukazatele "Obsluha státního dluhu" o částku 9 000 000 000 Kč. Změna se promítne do dalších adekvátních ukazatelů. | H177: 0 | I177: 9000000000 | K177: 9000000000
C178: 398 | D178: Všeobecná pokladní správa | E178: snížit výdaje v kap. 398 Všeobecná pokladní správa v rámci specifického ukazatele "Vládní rozpočtová rezerva" o částku 1 000 000 000 Kč. Změna se promítne do dalších adekvátních ukazatelů. | H178: 0 | J178: 1000000000 | K178: 1000000000
A179: 75 | C179: 398 | D179: Všeobecná pokladní správa | E179: zvýšit výdaje v kap. 398 Všeobecná pokladní správa v rámci specifického ukazatele „Vládní rozpočtová rezerva“ o částku 35 000 000 000 Kč určené na kompenzace poplatků za obnovitelné zdroje energie (POZE) a růstu cen regulované složky elektřiny pro domácnosti a firmy a dále zbylé prostředky využít na zvýšení platů nepedagogických pracovníků ve školství a nelékařských pracovníků ve zdravotnictví. Změna se promítne do dalších adekvátních ukazatelů. | G179: 35000000000 | H179: =SUM(F179:G179) -> 35000000000 | K179: =SUM(I179:J179) -> 0 | L179: J. Hrnčíř | N179: 5170
C180: 398 | D180: Všeobecná pokladní správa | E180: snížit výdaje v kap. 398 Všeobecná pokladní správa v rámci specifického ukazatele „Odvody do rozpočtu Evropské unie“ o částku 35 000 000 000 Kč. Změna se promítne do dalších adekvátních ukazatelů. | H180: 0 | J180: 35000000000 | K180: 35000000000 | M180: Tato změna se promítne do textové části zákona a dalších adekvátních ukazatelů.
A181: 76 | C181: 314 | D181: Min. vnitra | E181: zvýšit výdaje v kap. 314 Min. vnitra v rámci specifického ukazatele "Výdaje Policie ČR" o částku 139 000 000 Kč s určením na podseskupení položek 501 Platy. Dále se zvyšuje specifický ukazatel "Výdaje Hasičského záchranného sboru ČR" o částku 48 000 000 Kč s určením na podseskupení položek 501 Platy určenou k v vyvážení propadu reálných výdělků. Změna se promítne do dalších adekvátních ukazatelů. | F181: =139000000+48000000 -> 187000000 | H181: 187000000 | K181: 0 | L181: R. Koten | N181: 5583
C182: 314 | D182: Min. vnitra | E182: snížit výdaje v kap. 314 Min. vnitra v rámci specifického ukazatele "Výdaje na zabezpečení plnění úkolů Ministerstva vnitra a ostatních organizačních složek státu" o částku 187 000 000 Kč v rámci podseskupení položek 522 Neinvestiční transfery neziskovým a podobným organizacím o částku 139 000 000 Kč a v rámci podseskupení položek 533 Neinvestiční transfery příspěvkovým a podobným organizacím o částku 48 000 000 Kč. Změna se promítne do dalších adekvátních ukazatelů. | H182: 0 | I182: 187000000 | K182: 187000000
A183: 77 | C183: 398 | D183: Všeobecná pokladní správa | E183: zvýšit výdaje v kap. 398 Všeobecná pokladní správa v rámci specifického ukazatele „Vládní rozpočtová rezerva“ o částku 5 000 000 000 Kč určené pro prevenci a řešení krizových situací a civilní ochranu obyvatelstva. Změna se promítne do dalších adekvátních ukazatelů. | G183: 5000000000 | H183: 5000000000 | K183: 0 | L183: V. Zlínský a V. Lesenská | N183: 5252
C184: 398 | D184: Všeobecná pokladní správa | E184: snížit výdaje v kap. 398 Všeobecná pokladní správa v rámci specifického ukazatele „Odvody do rozpočtu Evropské unie“ o částku 5 000 000 000 Kč. Změna se promítne do dalších adekvátních ukazatelů. | H184: 0 | J184: 5000000000 | K184: 5000000000 | M184: Tato změna se promítne do textové části zákona a dalších adekvátních ukazatelů.
A185: 78 | C185: 307 | D185: Min. obrany | E185: zvýšit výdaje v kap. 307 Min. obrany v rámci průřezového ukazatele "Platy zaměstnanců bezpečnostních sborů a ozbrojených sil ve služebním poměru" o částku 1 050 113 000 Kč s určením k dodatečnému navýšení platů vojáků o 5 % (celkem pro rok 2025 tak o 10%). Změna se promítne do dalších adekvátních ukazatelů. | F185: 1050113000 | H185: 1050113000 | K185: 0 | L185: L. Metnar | N185: 5605
C186: 307 | D186: Min. obrany | E186: snížit výdaje v kap. 307 Min. obrany v rámci specifického ukazatele „Zajištění obrany ČR silami Armády ČR“ o částku 1 050 113 000 Kč snížením splátek na pořízení letounů F35. Změna se promítne do dalších adekvátních ukazatelů. | H186: 0 | I186: 1050113000 | K186: 1050113000
A187: 79 | C187: 329 | D187: Min. zemědělství | E187: zvýšit výdaje v kap. 329 Min. zemědělství v rámci specifického ukazatele "Ostatní výdaje na státní politiku resortu, inspekční, kontrolní a výzkumnou činnost" o částku 67 133 393 Kč s určením na platy a ostatní platby za provedenou práci a příslušenství pro Státní pozemkový úřad. Zároveň se zvyšují průřezové ukazatele "Platy zaměstnanců a ostatní platby za provedenou práci" o částku 49 802 220 Kč a dále "Povinné pojistné placené zaměstnavatelem" o částku 16 833 151 Kč, dále "Základní příděl fondu kulturních a sociálních potřeb" o částku 498 022 Kč a dále "Platy zaměstnanců v pracovním poměru vyjma zaměstnanců na služebních místech" o částku 2 558 540 Kč a dále "Platy zaměstnanců na služebních místech dle zákona o státní službě" o částku 47 243 680 Kč. Změna se promítne do dalších adekvátních ukazatelů. | F187: 67133393 | H187: =SUM(F187:G187) -> 67133393 | K187: =SUM(I187:J187) -> 0 | L187: K. Smetana, M. Kučera, T. Dubský, P. Bendl | N187: 5630 | O187: SOUHLAS
C188: 398 | D188: Všeobecná pokladní správa | E188: snížit výdaje v kap. 398 Všeobecná pokladní správa v rámci specifického ukazatele "Vládní rozpočtová rezerva" o částku 67 133 393 Kč. Změna se promítne do dalších adekvátních ukazatelů. | H188: 0 | J188: 67133393 | K188: 67133393
A189: 80 | C189: 333 | D189: Min. školství, mládeže a tělovýchovy | E189: zvýšit výdaje v kap. 333 Min. školství, mládeže a tělovýchovy v rámci specifického ukazatele "Výdaje regionálního školství a přímo řízených organizací" o částku 15 000 000 Kč s účelem na financování rozvoje poboček stávajících vysokých škol v Karlovarském kraji. Změna se promítne do dalších adekvátních ukazatelů. | F189: 15000000 | H189: =SUM(F189:G189) -> 15000000 | K189: =SUM(I189:J189) -> 0 | L189: R. Oulehlová, J. Váňa | N189: 5616
C190: 398 | D190: Všeobecná pokladní správa | E190: snížit výdaje v kap. 398 Všeobecná pokladní správa v rámci specifického ukazatele "Vládní rozpočtová rezerva" o částku 15 000 000 Kč. Změna se promítne do dalších adekvátních ukazatelů. | H190: 0 | J190: 15000000 | K190: 15000000
A191: 81 | C191: 305 | D191: Bezpečnostní informační služba | E191: zvýšit celkové výdaje v kap. 305 Bezpečnostní informační služba v rámci specifického ukazatele "Výdaje na zabezpečení plnění úkolů Bezpečnostní informační služby" o částku 250 000 000 Kč k posílení rozpočtu pro zvýšení vnitřní bezpečnosti státu. Změna se promítne do dalších adekvátních ukazatelů kapitoly. | F191: 250000000 | H191: =SUM(F191:G191) -> 250000000 | K191: =SUM(I191:J191) -> 0 | L191: R. Králíček, H. Lang, D. Ryba, P. Sadovský, J. Mašek, P. Růžička | N191: 5620
C192: 398 | D192: Všeobecná pokladní správa | E192: snížit výdaje v kap. 398 Všeobecná pokladní správa v rámci specifického ukazatele "Vládní rozpočtová rezerva" o částku 250 000 000 Kč. Změna se promítne do dalších adekvátních ukazatelů. | H192: =SUM(F192:G192) -> 0 | J192: 250000000 | K192: =SUM(I192:J192) -> 250000000
A193: 82 | C193: 378 | D193: Národní úřad pro kybernetickou a informační bezpečnost | E193: zvýšit výdaje v kap. 378 Národní úřad pro kybernetickou a informační bezpečnost v rámci specifického ukazatele "Výdaje na zabezpečení plnění úkolů Národního úřadu pro kybernetickou a informační bezpečnost" o částku 35 000 000 Kč určenou k posílení běžných i investičních výdajů. Změna se promítne do dalších adekvátních ukazatelů kapitoly. | F193: 35000000 | H193: =SUM(F193:G193) -> 35000000 | K193: =SUM(I193:J193) -> 0 | L193: R. Králíček, H. Lang, D. Ryba, P. Sadovský, J. Mašek, P. Růžička | N193: 5622
C194: 364 | D194: Digitální a informační agentura | E194: snížit výdaje v kap. 364 Digitální a informační agentura v rámci specifického ukazatele "Výdaje na zabezpečení plnění úkolů Digitální a informační agentury" o částku 35 000 000 Kč z aplikace e-doklady. Změna se promítne do dalších adekvátních ukazatelů. | H194: 0 | I194: 35000000 | K194: 35000000
A195: 83 | C195: 333 | D195: Min. školství, mládeže a tělovýchovy | E195: zvýšit výdaje v kap. 333 Min. školství, mládeže a tělovýchovy v rámci specifického ukazatele "Výdaje regionálního školství a přímo řízených organizací" v rámci programu 13334 Podpora rozvoje infrastruktury základního vzdělávání zřizovaného obcemi a dobrovolnými svazky obcí a dále programu 13333 Podpora vybraných projektů rozvoje výukových kapacit základního vzdělávání zřizovaného obcemi a dobrovolnými svazky obcí s určením zejména pro ZŠ a MŠ o částku 400 000 000 Kč. Změna se promítne do dalších adekvátních ukazatelů. | F195: 400000000 | H195: =SUM(F195:G195) -> 400000000 | K195: =SUM(I195:J195) -> 0 | L195: P. Svoboda, R. Zajíčková, K. Haas, V. Kovářová, J. Berki, J. Hájek, M. O. Havel, A. Tesařík, I. Vondrák | N195: 5636
C196: 398 | D196: Všeobecná pokladní správa | E196: snížit výdaje v kap. 398 Všeobecná pokladní správa v rámci specifického ukazatele "Vládní rozpočtová rezerva" o částku 400 000 000 Kč. Změna se promítne do dalších adekvátních ukazatelů. | H196: 0 | J196: 400000000 | K196: 400000000
A197: 84 | C197: 333 | D197: Min. školství, mládeže a tělovýchovy | E197: zvýšit výdaje v kap. 333 Min. školství, mládeže a tělovýchovy v rámci specifického ukazatele "Výdaje regionálního školství a přímo řízených organizací" v rámci programu 13334 Podpora rozvoje infrastruktury základního vzdělávání zřizovaného obcemi a dobrovolnými svazky obcí a dále programu 13333 Podpora vybraných projektů rozvoje výukových kapacit základního vzdělávání zřizovaného obcemi a dobrovolnými svazky obcí s určením zejména pro ZŠ a MŠ o částku 600 000 000 Kč. Změna se promítne do dalších adekvátních ukazatelů. | F197: 600000000 | H197: 600000000 | K197: 0 | L197: P. Svoboda, R. Zajíčková, K. Haas, V. Kovářová, J. Berki, J. Hájek, M. O. Havel, A. Tesařík, I. Vondrák | N197: 5637
C198: 398 | D198: Všeobecná pokladní správa | E198: snížit výdaje v kap. 398 Všeobecná pokladní správa v rámci specifického ukazatele "Vládní rozpočtová rezerva" o částku 600 000 000 Kč. Změna se promítne do dalších adekvátních ukazatelů. | H198: 0 | J198: 600000000 | K198: 600000000
A199: 85 | C199: 333 | D199: Min. školství, mládeže a tělovýchovy | E199: zvýšit výdaje v kap. 333 Min. školství, mládeže a tělovýchovy v rámci specifického ukazatele "Ostatní výdaje na zabezpečení úkolů resortu“ o částku 6 000 000 000 Kč a směrovat je do tzv.speciálního školství. Změna se promítne do dalších adekvátních ukazatelů kapitoly. | F199: 6000000000 | H199: =SUM(F199:G199) -> 6000000000 | K199: =SUM(I199:J199) -> 0 | L199: K. Sládeček a J. Hrnčíř | N199: 5182
C200: 333 | D200: Min. školství mládeže a tělovýchovy | E200: snížit výdaje v kap. 333 Min. školství, mládeže a tělovýchovy v rámci specifického ukazatele "Výdaje regionálního školství a přímo řízených organizací“ o částku 6 000 000 000 Kč, které byly určené na rozvojové programy, především podporu společného vzdělávání (tzv. inkluzi). Změna se promítne do dalších adekvátních ukazatelů kapitoly. | H200: 0 | I200: 6000000000 | K200: 6000000000
A201: 86 | C201: 335 | D201: Min. zdravotnictví | E201: zvýšit výdaje v kap. 335 Min. zdravotnictví v rámci specifického ukazatele "Zdravotnické programy" o částku 5 000 000 Kč určením pro Národní program řešení problematiky HIV/AIDS. Změna se promítne do dalších adekvátních ukazatelů. | F201: 5000000 | H201: =SUM(F201:G201) -> 5000000 | K201: =SUM(I201:J201) -> 0 | L201: L. Turek, V. Vomáčka, M. Major, P. Fifka | N201: 5619 | O201: SOUHLAS
C202: 398 | D202: Všeobecná pokladní správa | E202: snížit výdaje v kap. 398 Všeobecná pokladní správa v rámci specifického ukazatele "Vládní rozpočtová rezerva" o částku 5 000 000 Kč. Změna se promítne do dalších adekvátních ukazatelů. | H202: 0 | J202: 5000000 | K202: 5000000
A203: 87 | C203: 329 | D203: Ministerstvo zemědělství | E203: zvýšit výdaje v kap. 329 Min. zemědělství v rámci specifického ukazatele "Podpora lesního hospodářství" o částku 500 000 000 Kč s určením na obnovu holin po kůrovcové kalamitě. Změna se promítne do dalších adekvátních ukazatelů. | F203: 500000000 | H203: =SUM(F203:G203) -> 500000000 | K203: =SUM(I203:J203) -> 0 | L203: R. Rozvoral, O. Černý | N203: 5530
C204: 306 | D204: Min. zahraničních věcí | E204: snížit výdaje v kap. 306 Min. zahraničních věcí v rámci specifického ukazatele "Výdaje na plnění úkolů Ministerstva zahraničních věcí" a "v tom: program humanitární, stabilizační, rozvojové a hospodářské asistence Ukrajině" o částku 500 000 000 Kč. Změna se promítne do dalších adekvátních ukazatelů. | H204: =SUM(F204:G204) -> 0 | I204: 500000000 | K204: =SUM(I204:J204) -> 500000000
... 52 more rows
